Workbook

Sheet GOA Gfish Specs 2020
A1: Table 1. Plan Team recommended OFL and ABC for Groundfish in the Gulf of Alaska (metric tons) for 2020-2021.
D2: 2019 | F2: Catch | G2: Plan Team Rec 2020 | I2: 2020 TAC | J2: Plan Team Rec 2021 | L2: 2021 TAC
A3: Species | B3: Area | C3: OFL | D3: ABC | E3: TAC | F3: 2019-11-02 | G3: OFL | H3: ABC | J3: OFL | K3: ABC
A4: Pollock | B4: State GHL | C4: n/a | D4: 3,396 | E4: 0 | G4: n/a | H4: 2,712 | J4: n/a | K4: 2,797
B5: W (610) | C5: n/a | D5: 24,875 | E5: 24,875 | F5: 21,867 | G5: n/a | H5: 19,175 | J5: n/a | K5: 19,775
B6: C (620) | C6: n/a | D6: 67,388 | E6: 67,388 | F6: 64,079 | G6: n/a | H6: 54,456 | J6: n/a | K6: 56,160
B7: C (630) | C7: n/a | D7: 34,443 | E7: 34,443 | F7: 24,461 | G7: n/a | H7: 26,597 | J7: n/a | K7: 27,429
B8: WYAK | C8: n/a | D8: 5,748 | E8: 5,748 | F8: 6,612 | G8: n/a | H8: 5,554 | J8: n/a | K8: 5,728
B9: Subtotal | C9: 194,230 | D9: =SUM(D4:D8) -> 135,850 | E9: =SUM(E5:E8) -> 132,454 | F9: =SUM(F5:F8) -> 117,019 | G9: 140,674 | H9: =SUM(H4:H8) -> 108,494 | J9: 149,988 | K9: =SUM(K4:K8)-1 -> 111,888
B10: EYAK/SEO | C10: 11,697 | D10: 8,773 | E10: 8,773 | F10: 0 | G10: 13,531 | H10: 10,148 | J10: 13,531 | K10: 10,148
B11: Total | C11: =C9+C10 -> 205,927 | D11: 144,623 | E11: 141,227 | F11: 117,019 | G11: =SUM(G9:G10) -> 154,205 | H11: =H9+H10 -> 118,642 | J11: =SUM(J9:J10) -> 163,519 | K11: =K9+K10 -> 122,036
A12: Pacific Cod | B12: W | C12: n/a | D12: 7,633 | E12: 5,343 | F12: 5,017 | G12: n/a | H12: 4,942 | J12: n/a | K12: 8,390
B13: C | C13: n/a | D13: 7,667 | E13: 5,750 | F13: 5,705 | G13: n/a | H13: 8,458 | J13: n/a | K13: 14,358
B14: E | C14: n/a | D14: 1,700 | E14: 1,275 | F14: 187 | G14: n/a | H14: 1,221 | J14: n/a | K14: 2,072
B15: Total | C15: 23,669 | D15: =SUM(D12:D14) -> 17,000 | E15: =SUM(E12:E14) -> 12,368 | F15: =SUM(F12:F14) -> 10,909 | G15: 17,794 | H15: =SUM(H12:H14) -> 14,621 | J15: 30,099 | K15: =SUM(K12:K14) -> 24,820
A16: Sablefish | B16: W | C16: n/a | D16: 1,581 | E16: 1,581 | F16: 1,438 | G16: n/a | H16: 1,942 | J16: n/a | K16: 2,427
B17: C | C17: n/a | D17: 5,178 | E17: 5,178 | F17: 5,970 | G17: n/a | H17: 6,445 | J17: n/a | K17: 8,055
B18: WYAK | C18: n/a | D18: 1,828 | E18: 1,828 | F18: 1,774 | G18: n/a | H18: 2,343 | J18: n/a | K18: 2,687
B19: SEO | C19: n/a | D19: 2,984 | E19: 2,984 | F19: 3,037 | G19: n/a | H19: 3,663 | J19: n/a | K19: 4,821
B20: Total | C20: 25,227 | D20: =SUM(D16:D19) -> 11,571 | E20: =SUM(E16:E19) -> 11,571 | F20: =SUM(F16:F19) -> 12,219 | G20: 38,723 | H20: =SUM(H16:H19) -> 14,393 | J20: 49,681 | K20: =SUM(K16:K19) -> 17,990
A21: Shallow-Water Flatfish | B21: W | C21: n/a | D21: 25,620 | E21: 13,250 | F21: 72 | G21: n/a | H21: 23,849 | J21: n/a | K21: 24,256
B22: C | C22: n/a | D22: 25,731 | E22: 25,731 | F22: 2,303 | G22: n/a | H22: 27,732 | J22: n/a | K22: 28,205
B23: WYAK | C23: n/a | D23: 2,279 | E23: 2,279 | F23: 1 | G23: n/a | H23: 2,773 | J23: n/a | K23: 2,820
B24: EYAK/SEO | C24: n/a | D24: 1,957 | E24: 1,957 | F24: 1 | G24: n/a | H24: 1,109 | J24: n/a | K24: 1,128
B25: Total | C25: 68,309 | D25: =SUM(D21:D24) -> 55,587 | E25: =SUM(E21:E24) -> 43,217 | F25: =SUM(F21:F24) -> 2,377 | G25: 68,010 | H25: =SUM(H21:H24) -> 55,463 | J25: 69,129 | K25: =SUM(K21:K24) -> 56,409
A26: Deep-Water Flatfish | B26: W | C26: n/a | D26: 416 | E26: 416 | F26: 2 | G26: n/a | H26: 226 | J26: n/a | K26: 225
B27: C | C27: n/a | D27: 3,443 | E27: 3,443 | F27: 92 | G27: n/a | H27: 1,948 | J27: n/a | K27: 1,914
B28: WYAK | C28: n/a | D28: 3,280 | E28: 3,280 | F28: 8 | G28: n/a | H28: 2,105 | J28: n/a | K28: 2,068
B29: EYAK/SEO | C29: n/a | D29: 2,362 | E29: 2,362 | F29: 4 | G29: n/a | H29: 1,751 | J29: n/a | K29: 1,719
B30: Total | C30: 11,434 | D30: =SUM(D26:D29) -> 9,501 | E30: =SUM(E26:E29) -> 9,501 | F30: =SUM(F26:F29) -> 106 | G30: 7,163 | H30: =SUM(H26:H29) -> 6,030 | J30: 7,040 | K30: =SUM(K26:K29) -> 5,926
A31: Rex Sole | B31: W | C31: n/a | D31: 2,951 | E31: 2,951 | F31: 74 | G31: n/a | H31: 2,901 | J31: n/a | K31: 3,013
B32: C | C32: n/a | D32: 8,357 | E32: 8,357 | F32: 1,447 | G32: n/a | H32: 8,579 | J32: n/a | K32: 8,912
B33: WYAK | C33: n/a | D33: 1,657 | E33: 1,657 | F33: 2 | G33: n/a | H33: 1,174 | J33: n/a | K33: 1,206
B34: EYAK/SEO | C34: n/a | D34: 1,727 | E34: 1,727 | F34: 0 | G34: n/a | H34: 2,224 | J34: n/a | K34: 2,285
B35: Total | C35: 17,889 | D35: =SUM(D31:D34) -> 14,692 | E35: =SUM(E31:E34) -> 14,692 | F35: =SUM(F31:F34) -> 1,523 | G35: 18,127 | H35: =SUM(H31:H34) -> 14,878 | J35: 18,779 | K35: =SUM(K31:K34) -> 15,416
A36: Arrowtooth Flounder | B36: W | C36: n/a | D36: 35,994 | E36: 14,500 | F36: 683 | G36: n/a | H36: 31,455 | J36: n/a | K36: 30,545
B37: C | C37: n/a | D37: 70,995 | E37: 70,995 | F37: 22,840 | G37: n/a | H37: 68,669 | J37: n/a | K37: 66,683
B38: WYAK | C38: n/a | D38: 15,911 | E38: 6,900 | F38: 85 | G38: n/a | H38: 10,242 | J38: n/a | K38: 9,946
B39: EYAK/SEO | C39: n/a | D39: 22,941 | E39: 6,900 | F39: 24 | G39: n/a | H39: 17,694 | J39: n/a | K39: 17,183
B40: Total | C40: 174,598 | D40: =SUM(D36:D39) -> 145,841 | E40: =SUM(E36:E39) -> 99,295 | F40: =SUM(F36:F39) -> 23,632 | G40: 153,017 | H40: =SUM(H36:H39) -> 128,060 | J40: 148,597 | K40: =SUM(K36:K39) -> 124,357
A41: Flathead Sole | B41: W | C41: n/a | D41: 13,234 | E41: 8,650 | F41: 210 | G41: n/a | H41: 13,783 | J41: n/a | K41: 14,191
B42: C | C42: n/a | D42: 21,109 | E42: 15,400 | F42: 2,343 | G42: n/a | H42: 20,201 | J42: n/a | K42: 20,799
B43: WYAK | C43: n/a | D43: 2,016 | E43: 2,016 | F43: 0 | G43: n/a | H43: 2,354 | J43: n/a | K43: 2,424
B44: EYAK/SEO | C44: n/a | D44: 423 | E44: 423 | F44: 0 | G44: n/a | H44: 1,858 | J44: n/a | K44: 1,912
B45: Total | C45: 44,865 | D45: =SUM(D41:D44) -> 36,782 | E45: =SUM(E41:E44) -> 26,489 | F45: =SUM(F41:F44) -> 2,553 | G45: 46,572 | H45: =SUM(H41:H44) -> 38,196 | J45: 47,919 | K45: =SUM(K41:K44) -> 39,326
A46: Pacific ocean perch | B46: W | C46: n/a | D46: 3,227 | E46: 3,227 | F46: 3,145 | G46: n/a | H46: 1,437 | J46: n/a | K46: 1,379
B47: C | C47: n/a | D47: 19,646 | E47: 19,646 | F47: 18,114 | G47: n/a | H47: 23,678 | J47: n/a | K47: 22,727
B48: WYAK | C48: n/a | D48: 3,296 | E48: 3,296 | F48: 3,288 | G48: n/a | H48: 1,470 | J48: n/a | K48: 1,410
B49: W/C/WYAK | C49: 31,113 | D49: =SUM(D46:D48) -> 26,169 | E49: =SUM(E46:E48) -> 26,169 | F49: =F46+F47+F48 -> 24,547 | G49: 31,567 | H49: =SUM(H46:H48) -> 26,585 | J49: 30,297 | K49: =SUM(K46:K48) -> 25,516
B50: SEO | C50: 2,838 | D50: 2,386 | E50: 2,386 | F50: 0 | G50: 5,525 | H50: 4,653 | J50: 5,303 | K50: 4,467
B51: Total | C51: =C49+C50 -> 33,951 | D51: 28,555 | E51: 28,555 | F51: =F49+F50 -> 24,547 | G51: =G49+G50 -> 37,092 | H51: =H49+H50 -> 31,238 | J51: =SUM(J49:J50) -> 35,600 | K51: =K49+K50 -> 29,983
A52: Northern Rockfish | B52: W | C52: n/a | D52: 1,190 | E52: 1,190 | F52: 819 | G52: n/a | H52: 1,133 | J52: n/a | K52: 1,079
B53: C | C53: n/a | D53: 3,338 | E53: 3,338 | F53: 1,790 | G53: n/a | H53: 3,178 | J53: n/a | K53: 3,027
B54: E | C54: n/a | D54: 1 | E54: 0 | F54: 0 | G54: n/a | H54: 1 | J54: n/a | K54: 1
B55: Total | C55: 5,402 | D55: =D52+D53+D54 -> 4,529 | E55: =E52+E53 -> 4,528 | F55: =SUM(F52:F54) -> 2,609 | G55: 5,143 | H55: =SUM(H52:H54) -> 4,312 | J55: 4,898 | K55: =SUM(K52:K54) -> 4,107
A56: Shortraker Rockfish | B56: W | C56: n/a | D56: 44 | E56: 44 | F56: 55 | G56: n/a | H56: 52 | J56: n/a | K56: 52
B57: C | C57: n/a | D57: 305 | E57: 305 | F57: 226 | G57: n/a | H57: 284 | J57: n/a | K57: 284
B58: E | C58: n/a | D58: 514 | E58: 514 | F58: 391 | G58: n/a | H58: 372 | J58: n/a | K58: 372
B59: Total | C59: 1,151 | D59: =SUM(D56:D58) -> 863 | E59: =SUM(E56:E58) -> 863 | F59: =SUM(F56:F58) -> 672 | G59: 944 | H59: =SUM(H56:H58) -> 708 | J59: 944 | K59: =SUM(K56:K58) -> 708
A60: Dusky Rockfish | B60: W | C60: n/a | D60: 781 | E60: 781 | F60: 198 | G60: n/a | H60: 776 | J60: n/a | K60: 759
B61: C | C61: n/a | D61: 2,764 | E61: 2,764 | F61: 2,071 | G61: n/a | H61: 2,746 | J61: n/a | K61: 2,688
B62: WYAK | C62: n/a | D62: 95 | E62: 95 | F62: 93 | G62: n/a | H62: 115 | J62: n/a | K62: 113
B63: EYAK/SEO | C63: n/a | D63: 60 | E63: 60 | F63: 3 | G63: n/a | H63: 39 | J63: n/a | K63: 38
B64: Total | C64: 4,521 | D64: =SUM(D60:D63) -> 3,700 | E64: =SUM(E60:E63) -> 3,700 | F64: =SUM(F60:F63) -> 2,365 | G64: 4,492 | H64: =SUM(H60:H63) -> 3,676 | J64: 4,396 | K64: =SUM(K60:K63) -> 3,598
A65: Rougheye and Blackspotted Rockfish | B65: W | C65: n/a | D65: 174 | E65: 174 | F65: 78 | G65: n/a | H65: 168 | J65: n/a | K65: 169
B66: C | C66: n/a | D66: 550 | E66: 550 | F66: 433 | G66: n/a | H66: 455 | J66: n/a | K66: 455
B67: E | C67: n/a | D67: 704 | E67: 704 | F67: 208 | G67: n/a | H67: 586 | J67: n/a | K67: 587
B68: Total | C68: 1,715 | D68: =SUM(D65:D67) -> 1,428 | E68: =SUM(E65:E67) -> 1,428 | F68: =SUM(F65:F67) -> 719 | G68: 1,452 | H68: =SUM(H65:H67) -> 1,209 | J68: 1,455 | K68: =SUM(K65:K67) -> 1,211
A69: Demersal shelf rockfish | B69: Total | C69: 411 | D69: 261 | E69: 261 | F69: 140 | G69: 375 | H69: 238 | J69: 375 | K69: 238
A70: Thornyhead Rockfish | B70: W | C70: n/a | D70: 326 | E70: 326 | F70: 124 | G70: n/a | H70: 326 | J70: n/a | K70: 326
B71: C | C71: n/a | D71: 911 | E71: 911 | F71: 375 | G71: n/a | H71: 911 | J71: n/a | K71: 911
B72: E | C72: n/a | D72: 779 | E72: 779 | F72: 265 | G72: n/a | H72: 779 | J72: n/a | K72: 779
B73: Total | C73: 2,688 | D73: =SUM(D70:D72) -> 2,016 | E73: =SUM(E70:E72) -> 2,016 | F73: =SUM(F70:F72) -> 764 | G73: 2,688 | H73: =SUM(H70:H72) -> 2,016 | J73: 2,688 | K73: =SUM(K70:K72) -> 2,016
A74: Other Rockfish | B74: W/C | C74: n/a | D74: 1,737 | E74: 1,737 | F74: 684 | G74: n/a | H74: 940 | J74: n/a | K74: 940
B75: WYAK | C75: n/a | D75: 368 | E75: 368 | F75: 180 | G75: n/a | H75: 369 | J75: n/a | K75: 369
B76: EYAK/SEO | C76: n/a | D76: 3,489 | E76: 3,489 | F76: 50 | G76: n/a | H76: =2744 -> 2,744 | J76: n/a | K76: =2744 -> 2,744
B77: Total | C77: 7,356 | D77: =SUM(D74:D76) -> 5,594 | E77: =SUM(E74:E76) -> 5,594 | F77: =SUM(F74:F76) -> 914 | G77: 5,320 | H77: =SUM(H74:H76) -> 4,053 | J77: 5,320 | K77: =SUM(K74:K76) -> 4,053
A78: Atka mackerel | B78: Total | C78: 6,200 | D78: 4,700 | E78: 3,000 | F78: 1,254 | G78: 6,200 | H78: 4,700 | J78: 6,200 | K78: 4,700
A79: Big Skate | B79: W | C79: n/a | D79: 504 | E79: 504 | F79: 114 | G79: n/a | H79: 758 | J79: n/a | K79: 758
B80: C | C80: n/a | D80: 1,774 | E80: 1,774 | F80: 977 | G80: n/a | H80: 1,560 | J80: n/a | K80: 1,560
B81: E | C81: n/a | D81: 570 | E81: 570 | F81: 101 | G81: n/a | H81: 890 | J81: n/a | K81: 890
B82: Total | C82: 3,797 | D82: =SUM(D79:D81) -> 2,848 | E82: =SUM(E79:E81) -> 2,848 | F82: =SUM(F79:F81) -> 1,192 | G82: 4,278 | H82: =SUM(H79:H81) -> 3,208 | J82: 4,278 | K82: =SUM(K79:K81) -> 3,208
A83: Longnose Skate | B83: W | C83: n/a | D83: 149 | E83: 149 | F83: 59 | G83: n/a | H83: 158 | J83: n/a | K83: 158
B84: C | C84: n/a | D84: 2,804 | E84: 2,804 | F84: 616 | G84: n/a | H84: 1,875 | J84: n/a | K84: 1,875
B85: E | C85: n/a | D85: 619 | E85: 619 | F85: 308 | G85: n/a | H85: 554 | J85: n/a | K85: 554
B86: Total | C86: 4,763 | D86: =SUM(D83:D85) -> 3,572 | E86: =SUM(E83:E85) -> 3,572 | F86: =SUM(F83:F85) -> 983 | G86: 3,449 | H86: =SUM(H83:H85) -> 2,587 | J86: 3,449 | K86: =SUM(K83:K85) -> 2,587
A87: Other Skates | B87: GOA-wide | C87: 1,845 | D87: 1,384 | E87: 1,384 | F87: 867 | G87: 1,166 | H87: 875 | J87: 1,166 | K87: 875
A88: Sculpins | B88: GOA-wide | C88: 6,958 | D88: 5,301 | E88: 5,301 | F88: 574 | G88: 6,932 | H88: 5,199 | J88: 6,932 | K88: 5,199
A89: Sharks | B89: GOA-wide | C89: 10,913 | D89: 8,184 | E89: 8,184 | F89: 1,728 | G89: 10,913 | H89: 8,184 | J89: 10,913 | K89: 8,184
A90: Squids | B90: GOA-wide | C90: 0 | D90: 0 | G90: 0 | H90: 0 | J90: 0 | K90: 0
A91: Octopuses | B91: GOA-wide | C91: 1,300 | D91: 975 | E91: 975 | F91: 316 | G91: 1,307 | H91: 980 | J91: 1,307 | K91: 980
A92: TOTAL | C92: =C11+C15+C20+C25+C30+C35+C40+C45+C51+C55+C59+C64+C68+C69+C73+C77+C78+C82+C86+C87+C88+C89+C90+C91 -> 664,889 | D92: 509,507 | E92: 430,569 | F92: 209,982 | G92: 595,362 | H92: 463,466 | J92: =J11+J15+J20+J25+J30+J35+J40+J45+J51+J55+J59+J64+J68+J69+J73+J77+J78+J82+J86+J87+J88+J89+J90+J91 -> 624,684 | K92: =K11+K15+K20+K25+K30+K35+K40+K45+K51+K55+K59+K64+K68+K69+K73+K77+K78+K82+K86+K87+K88+K89+K90+K91 -> 477,927
A93: Sources: 2018 OFLs, ABCs, and TACs are from harvest specifications adopted by the Council in December 2017; 2019 OFLs, ABCs, and TACs are from the harvest specifications adopted by the Council in December 2018, 2018 catches through December 31, 2018 and 2019 catches through November 2, 2019 from AKR Catch Accounting.

Sheet Sheet1
